Cogmind - Beta 16.1 @@@ ROGUE MODE // 2026.05.03 @ 17:10:04 Player: KURIIRI Result: Self-destructed Performance ------------- Evolutions (0) 0 Regions Visited (3) 600 Robots Destroyed (23) 115 Value Destroyed (662) 662 Prototype IDs (16) 320 Alien Tech Used (0) 0 Bonus (0) 0 TOTAL SCORE: 1697 Bonus ------- None Cogmind --------- Core Integrity 165/250 Matter 290/300 Energy 177/200 System Corruption 0% Temperature Cool (78) Movement Rolling (160) Ox5 Location -7/Recycling Parts ------- > --- POWER (1) -------- Subdweller Power Source > --- PROPULSION (2) --- Light Treads Subdweller Monowheel > --- UTILITY (2) ------ Huge Storage Unit Makeshift Light Armor Plating > --- WEAPON (2) ------- Subdweller Laser Subdweller Beam Cannon > --- INVENTORY (25) --- Meta Core Wheel Large Storage Unit Subdweller Optics Improved Terrain Scanner Subdweller Machine Gun Subdweller Machine Gun Grenade Launcher Multitool Makeshift Sword SUBCON Basin (Full) Peak State ------------ > --- POWER ------------ Subdweller Power Source > --- PROPULSION ------- Light Treads Subdweller Monowheel > --- UTILITY ---------- Huge Storage Unit Makeshift Light Armor Plating > --- WEAPON ----------- Subdweller Laser Subdweller Beam Cannon > --- INVENTORY -------- Meta Core Wheel Large Storage Unit Subdweller Optics Improved Terrain Scanner Subdweller Machine Gun Subdweller Machine Gun Grenade Launcher Multitool Makeshift Sword SUBCON Basin [Rating: 35] Favorites ----------- Power Light Ion Engine Engine Light Ion Engine Propulsion Light Treads Treads Light Treads Leg Aluminum Leg Wheel Subdweller Monowheel Utility Huge Storage Unit Device Improved Terrain Scanner Storage Huge Storage Unit Protection Light Armor Plating Weapon Subdweller Beam Cannon Energy Gun Subdweller Laser Energy Cannon Subdweller Beam Cannon Ballistic Gun Assault Rifle Launcher Grenade Launcher Impact Weapon Hammer Build | -11 -10 -10 -7 ------- Run | Yrd Mat Sub Rec Slots Evolved . | . . . . Power . | . . . . Propulsion . | . . . . Utility . | . . . . Weapon . | . . . . Parts Attached 22 | 3 6 13 . Power 2 | . . 2 . Engine 2 | . . 2 . Core . | . . . . Reactor . | . . . . Propulsion 4 | 2 . 2 . Treads 3 | 2 . 1 . Leg . | . . . . Wheel 1 | . . 1 . Hover . | . . . . Flight . | . . . . Utility 6 | 1 3 2 . Device 1 | 1 . . . Storage 2 | . 2 . . Processor . | . . . . Hackware . | . . . . Protection 3 | . 1 2 . Artifact . | . . . . Weapon 10 | . 3 7 . Energy Gun 2 | . . 2 . Energy Cannon 4 | . 2 2 . Ballistic Gun 1 | . 1 . . Ballistic Cannon . | . . . . Launcher 2 | . . 2 . Special Weapon . | . . . . Impact Weapon 1 | . . 1 . Slashing Weapon . | . . . . Piercing Weapon . | . . . . Special Melee Weapon . | . . . . Unidentified Prototypes . | . . . . Parts Lost 4 | . . 4 . Power 2 | . . 2 . Propulsion 2 | . . 2 . Utility . | . . . . Weapon . | . . . . Highest Loss Streak 1 | . . 1 . To Critical Strikes . | . . . . Average Backups 17 | 5 10 20 10 Power . | 1 1 . . Propulsion 1 | 3 2 1 1 Utility 4 | . 3 4 3 Weapon 10 | 1 3 12 4 Tool/Special . | . . . . Unused Backups 26 | 6 3 9 8 Power 2 | 1 . 1 . Propulsion 4 | 2 1 . 1 Utility 5 | 1 1 2 1 Weapon 13 | 2 1 6 4 Tool/Special 2 | . . . 2 Average Slot Usage (%) 99 | . 100 99 100 Engine 13 | . 14 13 14 Treads 24 | . 28 23 14 Wheel 2 | . . 3 14 Device 9 | . . 11 . Storage 14 | . 14 14 14 Protection 4 | . 13 2 14 Energy Gun 5 | . . 6 14 Energy Cannon 15 | . 12 16 14 Ballistic Gun 3 | . 15 . . Launcher 3 | . . 4 . Peak Build Rating 35 | 9 9 35 35 Average Rating 13 | 7 7 14 35 On Entrance 14 | 6 9 8 35 Avg Prop Armor Cover (%) 14 | . . 14 12 Naked Turns . | . . . . Heaviest Build 102 | 14 94 102 101 Greatest Support 40 | 40 40 40 20 Greatest Overweight (x) 5 | . 2 5 5 Average Overweight (x) 2 | . . 3 5 Largest Inventory Capacity 25 | 8 25 25 25 Average Capacity 23 | 8 17 25 25 Most Carried 25 | 6 15 25 25 Average Carried 18 | 5 10 21 25 Final Capacity 25 | 8 25 25 25 Final Carried 25 | 4 15 25 25 Class Distribution -------------------- 79% | Mutant 20% | Scavenger-Mutant Dominant Class ---------------- Mutant | -10/Materials Mutant | -10/Subcaves Scavenger-Mutant | -7/Recycling Resources | -11 -10 -10 -7 ----------- Run | Yrd Mat Sub Rec Matter Collected 680 | 264 215 201 . Remotely . | . . . . Salvage Created 983 | 87 383 513 . Parts 56 | 4 20 32 . Haulers Intercepted 2 | . 2 . . Recyclers Shooed 4 | . 4 . . Parts Field Recycled . | . . . . Retrieved Matter . | . . . . Parts Self-Destructed 19 | . . 19 . Prevented . | . . . . Parts Restored . | . . . . Kills | -11 -10 -10 -7 ------- Run | Yrd Mat Sub Rec Combat Hostiles Destroyed 17 | . 7 10 . Guns 5 | . 5 . . Cannons 11 | . 2 9 . AOE 1 | . . 1 . Classes Destroyed 8 | 2 3 3 . Builder 1 | . 1 . . Tunneler 2 | 1 1 . . Hauler 2 | . 2 . . Recycler 1 | 1 . . . Swarmer 2 | . . 2 . Grunt 9 | . 7 2 . Sentry 1 | . . 1 . Subdweller 5 | . . 5 . Best Kill Streak 3 | 2 3 2 . Combat Bots Only 2 | . 2 2 . Max Kills in Single Turn 1 | 1 1 1 . Gunslinging . | . . . . Exploded 1 | . . 1 . Melee . | . . . . Uniques/NPCs Destroyed . | . . . . Combat | -11 -10 -10 -7 -------- Run | Yrd Mat Sub Rec Hostile Shots Fired 87 | . 38 49 . Missed 21 | . 8 13 . Hits 66 | . 30 36 . Projectile 66 | . 30 36 . Critical Strikes 3 | . 1 2 . Damage Taken 1056 | . 435 621 . Core 85 | . 49 36 . Absorbed by Shields . | . . . . Core Remaining (%) 100 | 100 . . . Volleys Fired 126 | 9 37 79 1 Largest 2 | 2 2 2 2 Hottest 160 | 40 120 160 140 Shots Fired 199 | 18 74 105 2 Gun 104 | 18 62 23 1 Cannon 93 | . 12 80 1 Launcher 2 | . . 2 . Special . | . . . . Kinetic 80 | 18 62 . . Thermal 117 | . 12 103 2 Explosive 2 | . . 2 . Electromagnetic . | . . . . Robot Hit Streak 12 | 2 9 12 . Robot Miss Streak 4 | 3 4 4 2 Penetration Max . | . . . . Secondary Targets 1 | . 1 . . Max Gunslinging Chain 1 | . 1 . . Shots Hit Robots 101 | 7 46 48 . Core Hits 36 | 5 18 13 . Critical Kills . | . . . . Critical Parts Destroyed . | . . . . Critical Strikes . | . . . . Melee Attacks 7 | . . 7 . Impact 7 | . . 7 . Slashing . | . . . . Piercing . | . . . . Sneak Attacks . | . . . . Combat Hostiles . | . . . . Follow-up Attacks . | . . . . Damage Inflicted 1901 | 54 669 1178 . Guns 619 | 52 504 63 . Cannons 1116 | . 129 987 . Explosions 128 | . . 128 . Melee . | . . . . Ramming 38 | 2 36 . . Kinetic 556 | 52 504 . . Thermal 1179 | . 129 1050 . Explosive 128 | . . 128 . Electromagnetic . | . . . . Impact . | . . . . Slashing . | . . . . Piercing . | . . . . Highest Corruption . | . . . . Average Corruption . | . . . . Corruption Purged . | . . . . Corruption Blocked . | . . . . Overload Shots . | . . . . Overflow Damage 8 | . . 8 . Projectiles . | . . . . Explosions 8 | . . 8 . Melee . | . . . . Knockbacks . | . . . . Impact . | . . . . Kinetic . | . . . . Secondary . | . . . . Self-Inflicted Damage . | . . . . Shots . | . . . . Rammed 3 | 1 2 . . Targets Rammed 5 | 1 4 . . Kicked . | . . . . Crushed 2 | . 2 . . Highest Temperature 277 | . 277 252 78 Average Temperature 63 | . 55 71 52 Received Heat Transfer 766 | . 264 502 . Effects 1 | . 1 . . Energy Bleed 1 | . 1 . . Siege Activations . | . . . . Martial Activations . | . . . . Shielding Activations . | . . . . Robots Disrupted . | . . . . Combat Hostiles . | . . . . Robots Corrupted . | . . . . Combat Hostiles . | . . . . Parts Fried . | . . . . Impact Corruptions . | . . . . Robots Melted . | . . . . Combat Hostiles . | . . . . Parts Melted 2 | . 2 . . Heat Transferred 1999 | . 259 1740 . Parts Sabotaged . | . . . . Parts Stolen . | . . . . Parts Stripped . | . . . . Power Chain Reactions . | . . . . Alert | -11 -10 -10 -7 ------- Run | Yrd Mat Sub Rec Maximum Alert Level . | . . . . Low Security (%) 100 | 100 100 . 100 Level 1 . | . . . . Level 2 . | . . . . Level 3 . | . . . . Level 4 . | . . . . Level 5 . | . . . . High Security . | . . . . Max Security . | . . . . Peak Influence 56 | 5 56 . 15 Initial . | . . . . Average 15 | 2 16 . 2 Influence Increases 414 | 10 279 110 15 Destroy 0b10 Robot/C 240 | . 140 100 . Destroy 0b10 Robot/NC 30 | 10 20 . . Destroy Leader 54 | . 44 10 . Successful Hack 30 | . 30 . . Select Force Hacks 30 | . 30 . . Disable Machine 15 | . . . 15 Lose Combat Pursuer 15 | . 15 . . Influence Decreases 399 | 10 269 120 . Entered New Map 6 | . . 6 . Time Decay 393 | 10 269 114 . Squads Dispatched 1 | . 1 . . Investigation 1 | . 1 . . Extermination . | . . . . Reinforcement . | . . . . Assault . | . . . . Garrison . | . . . . Intercept . | . . . . Searches Triggered . | . . . . Construction Impeded . | . . . . Haulers Reinforced . | . . . . Active Scanning Responses . | . . . . Cargo Convoy Interrupts . | . . . . Stealth | -11 -10 -10 -7 --------- Run | Yrd Mat Sub Rec Distress Signals . | . . . . Communications Jammed . | . . . . Distress Signals . | . . . . Times Spotted 26 | . 12 13 1 Peak Tracking Total 3 | . 3 3 1 Tactical Retreats 1 | . 1 . . Traps | -11 -10 -10 -7 ------- Run | Yrd Mat Sub Rec Traps Triggered . | . . . . Indirectly . | . . . . Trap Hack Attempts . | . . . . Triggered . | . . . . Disarmed . | . . . . Reprogrammed . | . . . . Reused . | . . . . Traps Extracted . | . . . . Installed . | . . . . Triggered . | . . . . Machines | -11 -10 -10 -7 ---------- Run | Yrd Mat Sub Rec Machines Disabled 2 | . . 1 1 Max in Single Turn 1 | . . 1 1 Machines Repaired . | . . . . Machines Dismantled . | . . . . Machines Sabotaged . | . . . . Overloaded Fab Kills . | . . . . Hacking | -11 -10 -10 -7 --------- Run | Yrd Mat Sub Rec Machines Accessed 8 | . 5 3 . Terminals 4 | . 4 . . Fabricators . | . . . . Repair Stations . | . . . . Recycling Units 1 | . 1 . . Scanalyzers . | . . . . Garrison Access . | . . . . Total Hacks 17 | . 14 3 . Successful 11 | . 8 3 . Failed 5 | . 5 . . Catastrophic . | . . . . Database Lockouts 1 | . 1 . . Manual 11 | . 11 . . Terminals 13 | . 13 . . Fabricators . | . . . . Repair Stations . | . . . . Recycling Units 1 | . 1 . . Scanalyzers . | . . . . Garrison Access . | . . . . Terminal Hacks 7 | . 4 3 . Robot Analysis 1 | . 1 . . Prototype ID Bank 1 | . 1 . . Open Door 1 | . . 1 . Locate Traps 1 | . 1 . . Registered Components 1 | . 1 . . Proto ID Catalog 1 | . . 1 . Release Object 1 | . . 1 . Fabricator Hacks . | . . . . Repair Station Hacks . | . . . . Recycling Unit Hacks . | . . . . Scanalyzer . | . . . . Garrison Access Hacks . | . . . . Unauthorized Hacks 4 | . 4 . . Terminals 3 | . 3 . . Botnet 2 | . 2 . . Operators 1 | . 1 . . Fabricators . | . . . . Repair Stations . | . . . . Recycling Units 1 | . 1 . . Tunnel 1 | . 1 . . Scanalyzers . | . . . . Garrison Access . | . . . . Data Cores Recovered . | . . . . Used . | . . . . Hacking Detections 4 | . 4 . . Full Trace Events . | . . . . Feedback Events . | . . . . Feedback Blocked . | . . . . Robot Schematics Acquired . | . . . . Robots Built . | . . . . Authchips . | . . . . Time . | . . . . Total Robot Build Rating . | . . . . Part Schematics Acquired . | . . . . Parts Built . | . . . . Authchips . | . . . . Time . | . . . . Total Part Build Rating . | . . . . Part Studies Acquired . | . . . . Parts Repaired . | . . . . Time . | . . . . Parts Recycled . | . . . . Recycled Matter . | . . . . Retrieved Matter . | . . . . Retrieved Components . | . . . . Parts Scanalyzed . | . . . . Part Schematics Acquired . | . . . . Parts Damaged . | . . . . Bothacking | -11 -10 -10 -7 ------------ Run | Yrd Mat Sub Rec Used RIF Installer . | . . . . Robots Hacked . | . . . . Non-combat . | . . . . Combat . | . . . . Robot Hacks Applied . | . . . . Relay Couplers Released . | . . . . Fabnet Peak Effective % . | . . . . Robots Rewired . | . . . . Allies Hacked . | . . . . Hacks Repelled . | . . . . Allies | -11 -10 -10 -7 -------- Run | Yrd Mat Sub Rec Total Allies . | . . . . Largest Group . | . . . . Highest-Rated Group . | . . . . Highest-Rated Ally . | . . . . Total Orders . | . . . . Ally Attacks . | . . . . Total Damage . | . . . . Kills . | . . . . Allies Corrupted . | . . . . Allies Melted . | . . . . Intel | -11 -10 -10 -7 ------- Run | Yrd Mat Sub Rec Active Infowar (turns) 2951 | 30 47 2874 . Terrain 2951 | 30 47 2874 . Robot Analysis Total 1 | . 1 . . Derelict Logs Recovered 2 | . . 2 . Drone Launches . | . . . . Drone Recoveries . | . . . . Exploration | -11 -10 -10 -7 ------------- Run | Yrd Mat Sub Rec Turns Passed 4587 | 77 1022 3471 17 Spaces Moved 1555 | 36 387 1128 4 Core . | . . . . Treads 970 | 9 387 574 . Legs 27 | 27 . . . Wheels 558 | . . 554 4 Hover . | . . . . Flight . | . . . . Fastest Speed 120 | 120 160 150 160 Average Speed 235 | 130 224 243 160 Slowest Speed 560 | 160 320 560 160 Overloaded Moves . | . . . . Propulsion Burnouts . | . . . . Robots Hopped . | . . . . Potential Cave-ins . | . . . . Cave-ins Triggered . | . . . . Exploration Rate (%) 37 | 3 74 69 2 Regions Visited 3 Branch Regions 2 Pre-discovered Areas 3 | . 1 2 . Known Exits Taken . | . . . . Unknown Exits Taken 3 | 1 1 1 . Scrap Searched 13 | . . 13 . Spaces Dug 22 | . . 22 . Terrain Destroyed 37 | . . 37 . Melee 1 | . . 1 . Projectile 22 | . . 22 . AOE 14 | . . 14 . Terrain Rammed . | . . . . Walls Destroyed . | . . . . Machines Disabled . | . . . . Actions | -11 -10 -10 -7 --------- Run | Yrd Mat Sub Rec Total 2266 | 50 462 1742 12 Wait 493 | . 16 470 7 Move 1552 | 35 386 1127 4 Hop . | . . . . Pick Up 29 | . 11 18 . Fast Attach 4 | 1 . 3 . Attach 5 | 2 . 3 . Detach 2 | . . 2 . Swap 18 | . 6 12 . Drop 25 | 2 2 21 . Fire 126 | 9 37 79 1 Melee 7 | . . 7 . Ram . | . . . . Kick . | . . . . Crush 5 | 1 4 . . Escape Stasis . | . . . . Rewire . | . . . . Trap . | . . . . Miscellaneous . | . . . . Route ------- -11/Scrapyard -10/Materials (discovered 5 exits: [*Mat x2] / [*Min x2] / *Sub) -10/Subcaves (discovered 3 exits: [*Mat x2] / [*Rec]) -7/Recycling History --------- Turn | Location | Event 15 | -11/Scrapyard | Discovered new exit (range 3) 78 | -11/Scrapyard | Entered Materials 220 | -10/Materials | Central database locked down 246 | -10/Materials | Discovered new exit (range 10) 301 | -10/Materials | Build established: Mutant 378 | -10/Materials | Discovered new exit (range 6) 474 | -10/Materials | Discovered new exit (range 11) 966 | -10/Materials | Discovered new exit (range 14) 1058 | -10/Materials | Discovered new exit (range 7) 1100 | -10/Materials | Entered Subcaves 1101 | -10/Subcaves | Approached by a straggling Scientist 1126 | -10/Subcaves | Learned location of Zion (-6) 1126 | -10/Subcaves | Met a Zionite searching for "candidates" 1209 | -10/Subcaves | Shifting Twisted Machinery released Mak. Laser 1751 | -10/Subcaves | Discovered new exit (range 8) 1796 | -10/Subcaves | Shifting Twisted Machinery released Battle Rifle 1933 | -10/Subcaves | Disturbed a concealed Subdweller 2674 | -10/Subcaves | Discovered new exit (range 8) 3005 | -10/Subcaves | Discovered new exit (range 5) 3011 | -10/Subcaves | Learned location of Storage (-7) 3380 | -10/Subcaves | Learned Materials terminal intel 3719 | -10/Subcaves | A swath of the cavern ceiling suddenly collapsed 3983 | -10/Subcaves | Build established: Scavenger-Mutant 4103 | -10/Subcaves | Visited 4L-MR0's lab 4122 | -10/Subcaves | Found Meta Core 4330 | -10/Subcaves | Found SUBCON Basin 4571 | -10/Subcaves | Entered Recycling 4572 | -7/Recycling | Joined Warlord attack on 0b10 via Recycling 4588 | -7/Recycling | Self-destructed Last Messages --------------- 04328_ Dropped Imp. Heat Sink. 04328_ Dropped Sub. Machine Gun. 04329_ Dropped Sub. Laser. 04329_ Sub. Laser crushed and broken. 04329_ Dropped Sub. Laser. 04329_ Sub. Laser crushed and broken. 04330_ Dropped Sub. Laser. 04330_ Sub. Laser crushed and broken. 04330_ Acquired SUBCON Basin. LOCATION=UNKNOWN GOAL=ESCAPE 04572_ E7-7CG(g): "Hey, more reinforcements! Just in time, fall in with us. Squad C will strike the factory from cave 17 first to pull them in that direction, then we hit them from behind. Then God M*bzzt*... right, can't talk about that." 04583_ Y-54 Guardian springs to life. 04585_ Recycling Unit disabled. 04587_ Y-54 Guardian destroyed. Map ----- +----------------------------------------------------+ | ?????????????????????????????? | | ?????????????????????????????? | | ?????????????????????????????? | | ?????????????????????????????? | | ?????????????????????????????? | | ?????????????????????????????? | | ?????????????????????????????? | | ?????????????????????????????? | | ?????????????????????????????? | | ?????????????????????????????? | | ?????????????????????????????? | | ?????????????????????????????? | | ?????????????????????????????? | | ?????????????????????????????? | | ?????????????????????????????? | | ?????????????????????????????? | | ?????????????????????????????? | | ?????????????????????????????? | | ?????????####????????????????? | | ??????##?"""#????????????????? | | ????## ##" "###??????????????? | | ????# [% ???????????????? | | ????# ?????????????????? | | ????# gd???????????????????? | | ????# g###??????????????????? | | ????#@gb= #??????????????????? | | ????# dg==#??????????????????? | | ????# ==#??????????????????? | | ????# ###??????????????????? | | ????# #????????????????????? | | ????# #????????????????????? | | ????#####????????????????????? | | ?????????????????????????????? | | ?????????????????????????????? | | ?????????????????????????????? | | ?????????????????????????????? | | ?????????????????????????????? | | | | | | | | | | | | | | | | | | | | | | | | | | | +----------------------------------------------------+ Best States ------------- Heat Dissipation 25 Energy Generation 15 Energy Capacity 250 Matter Stores 300 Matter Capacity 300 Sight Range 16 Terrain Scan Range 16 Terrain Scan Density 10 Armor Coverage 150 Evasion (%) 55 Recoil Reduction 2 Item Schematics ----------------- None Robot Schematics ------------------ None Fabricated ------------ Nothing Repaired ---------- Nothing Studied --------- None Alien Tech Used ----------------- None Achievements -------------- None Challenges ------------ None Game ------ Seed AccelerationTimingBotcube Manual? 0 Play Time 00:14:49 Cumulative 441.4 hours Start 2026.05.03 @ 16:55:46 End 2026.05.03 @ 17:10:04 Sessions 1 Manual Loads 0 Difficulty Rogue Special Mode None Game No. 378 Rogue 342 Adventurer 36 Explorer 0 Win Type - Total 5 Types 2/0/0/1/0/0/0/2/0/0 Lore% 81 Gallery% 69 Achievement% 60 Wizard Run 0 Options --------- Layout 1 ASCII 0 Keyboard 0 Movement Numpad Keybinds 0 Fullscreen 1 Font 48/Smallcaps Map View 50x35 Zoom Use 0% Tactical HUD 1 Map Filters NONE Filters NONE Steam 1 RUN: 00921ed1-1648-4129-8cb8-0b5a2dcca427